fUST/lending_fUST_20251226
["ID","MTS","AMOUNT","RATE_DAILY","PERIOD"]
[399859846,1766759339295,-10000.01,0.000154,2]
[399859847,1766759342296,-10000.01,0.000154,2]
[399859848,1766759342469,-300.0,0.00015399,2]
[399859849,1766759342501,-3923.11795144,0.000154,2]
[399859850,1766759342543,-1553.77409712,0.000154,2]
[399859884,1766759432014,-187.11872692,0.0001567,2]
[399859885,1766759432025,-5000.0,0.00015781,2]
[399859886,1766759432036,-648.0,0.00015781,2]
[399859887,1766759432046,-23242.4322301,0.00015902,2]
[399859888,1766759432056,-500.0,0.0001594,2]
[399859889,1766759432067,-510.32,0.00015954,3]
[399859890,1766759432076,-510.32,0.00015954,3]
[399859891,1766759432086,-1200.0,0.00015954,2]
[399859892,1766759432096,-461.67526834,0.00015955,2]
[399859893,1766759432107,-168.3888056,0.00015955,2]
[399859894,1766759432116,-151.0,0.00015955,2]
[399859895,1766759432127,-300.0,0.00015958,2]
[399859896,1766759432137,-500.0,0.00015959,2]
[399859897,1766759432147,-329.3902901,0.00015959,2]
[399859898,1766759432157,-500.0,0.00015959,2]
[399859899,1766759432167,-500.0,0.00015959,2]
[399859900,1766759432176,-418.287076,0.00015959,2]
[399859901,1766759432186,-501.09537265,0.00015959,2]
[399859902,1766759432196,-500.0,0.00015959,2]
[399859903,1766759432206,-313.0941019,0.00015959,2]
[399859904,1766759432216,-500.0,0.00015959,2]
[399859905,1766759432227,-500.0,0.00015959,2]
[399859906,1766759432236,-500.0,0.00015959,2]
[399859907,1766759432246,-486.04620869,0.00015959,2]
[399859908,1766759432256,-254.31788971,0.00015959,2]
[399859909,1766759432266,-500.0,0.00015959,2]
[399859910,1766759432276,-500.0,0.00015959,2]
[399859911,1766759432287,-500.0,0.00015959,2]
[399859912,1766759432298,-500.0,0.00015959,2]
[399859913,1766759432308,-500.0,0.00015959,2]
[399859914,1766759432318,-500.0,0.00015959,2]
[399859915,1766759432328,-500.0,0.00015959,2]
[399859916,1766759432338,-500.0,0.00015959,2]
[399859917,1766759432349,-500.0,0.00015959,2]
[399859918,1766759432359,-500.0,0.00015959,2]
[399859919,1766759432370,-500.0,0.00015959,2]
[399859920,1766759432380,-500.0,0.00015959,2]
[399859921,1766759432394,-360.25252551,0.00015959,2]
[399859922,1766759432404,-500.0,0.00015959,2]
[399859923,1766759432413,-740.39588584,0.00015959,2]
[399859924,1766759432423,-416.11179489,0.00015963,2]
[399859925,1766759432433,-68232.79261285,0.00015964,2]
[399859926,1766759432452,-889.55888709,0.00015964,2]
[399859927,1766759432463,-1000.0,0.00015964,2]
[399859963,1766759438223,-249.82854507,0.00015961,2]
[399859965,1766759438234,-500.0,0.00015961,2]
[399859967,1766759438244,-206.88708479,0.00015961,2]
[399859969,1766759438254,-1112.75360846,0.00015961,2]
[399859971,1766759438265,-168.67357405,0.00015964,2]
[399859973,1766759438277,-910.73100734,0.00015964,2]
[399860010,1766759438673,-11926.99303414,0.00015964,2]
[399860082,1766759451050,217.88902353,7.268e-05,2]
[399860083,1766759451674,217.88902353,0.00012163,2]
[399860084,1766759459007,218.21558694,7.268e-05,2]
[399860085,1766759467660,150.0,5.427e-05,2]
[399860086,1766759468261,150.0,5.686e-05,2]
[399860087,1766759468615,150.0,5.944e-05,2]
[399860088,1766759469021,164.56,6.203e-05,2]
[399860089,1766759469464,205.7,6.461e-05,2]
[399860090,1766759470660,246.84,6.72e-05,2]
[399860091,1766759471376,287.97,6.978e-05,2]
[399860092,1766759471798,329.11,7.236e-05,2]
[399860093,1766759472192,370.25,7.495e-05,2]
[399860094,1766759472651,411.39,7.753e-05,2]
[399860095,1766759480955,500.0,0.00013273,2]
[399860096,1766759483653,500.0,0.00013273,2]
[399860097,1766759484486,500.0,0.00013273,2]
[399860098,1766759484671,500.0,0.00013273,2]
[399860099,1766759484788,500.0,0.00013273,2]
[399860100,1766759484940,500.0,0.00013273,2]
[399860101,1766759485128,500.0,0.00013273,2]
[399860102,1766759485619,500.0,0.00013273,2]
[399860103,1766759499748,543.09,0.0001,2]
[399860104,1766759504899,543.09,0.000102,2]
[399860105,1766759507629,543.09,0.000104,2]
[399860106,1766759507665,-274.7182,0.0001574,2]
[399860107,1766759510156,543.09,0.000106,2]
[399860108,1766759512947,543.09,0.000108,2]
[399860109,1766759515438,543.09,0.00011,2]
[399860110,1766759523865,-5000.0,0.00015741,2]
[399860111,1766759537136,0.01,0.00013273,2]
[399860112,1766759537163,499.99,0.00013273,2]
[399860113,1766759537709,500.0,0.00013273,2]
[399860114,1766759537763,521.50175164,0.00013273,2]
[399860115,1766759538100,500.0,0.00013273,2]
[399860116,1766759542465,150.0,5.4e-05,2]
[399860117,1766759542937,150.0,5.657e-05,2]
[399860118,1766759543393,150.0,5.914e-05,2]
[399860119,1766759543826,150.0,6.171e-05,2]
[399860120,1766759544241,150.0,6.428e-05,2]
[399860122,1766759586329,471.7822487,0.00013273,2]
[399860123,1766759586587,641.96745013,0.00013273,2]
[399860124,1766759587330,202.70382112,0.00013273,2]
[399860125,1766759593674,300.0,0.00013673,2]
[399860126,1766759593964,-1646.39876159,0.00015449,7]
[399860127,1766759609983,-313.91993326,0.00015594,2]
[399860128,1766759644244,500.0,0.00013273,2]
[399860129,1766759644451,410.33107016,0.00013273,2]
[399860130,1766759696706,-1000.0,0.0001574,2]
[399860131,1766759706035,500.0,0.00013273,2]
[399860132,1766759706074,500.0,0.00013273,2]
[399860133,1766759707325,500.0,0.00013273,2]
[399860134,1766759737986,-5000.0,0.00015641,2]
[399860135,1766759752798,0.01,0.00015641,2]
[399860136,1766759752834,4999.99,0.00015641,2]
[399860137,1766759764087,500.0,0.00013273,2]
[399860138,1766759767374,500.0,0.00013273,2]
[399860139,1766759767408,500.0,0.00013273,2]
[399860140,1766759805799,-999.0,0.00014885,2]
[399860141,1766759823763,415.34317373,0.00013273,2]
[399860142,1766759823798,500.0,0.00013273,2]
[399860143,1766759826682,500.0,0.00013273,2]
[399860144,1766759826715,500.0,0.00013699,2]
[399860145,1766759828461,333.0,0.00030136,120]
[399860146,1766759865677,435.7226124,0.00030136,120]
[399860147,1766759943839,-2547.2555759,0.00015642,2]
[399860148,1766759943872,-307.64153459,0.00015721,2]
[399860149,1766759946597,-1017.06387239,0.00015761,2]
[399860150,1766759949665,-2034.12774478,0.00015761,2]
[399860151,1766759956238,-4068.25548956,0.00015761,2]
[399860152,1766760146518,2075.9317204,0.00014833,2]
[399860153,1766760165918,-4636.79989967,0.00015542,2]
[399860159,1766760300434,10000.01,0.00012,2]
[399860160,1766760300461,10000.01,0.00012,2]
[399860161,1766760300487,10000.01,0.00012,2]
[399860162,1766760300512,10000.01,0.00012,2]
[399860163,1766760300540,10000.01,0.00012,2]
[399860164,1766760300566,10000.01,0.00012,2]
[399860165,1766760300591,10000.01,0.00012,2]
[399860166,1766760300620,10000.01,0.00012,2]
[399860167,1766760300646,10000.01,0.00012,2]
[399860168,1766760300674,2380.9587374,0.00012,2]
[399860169,1766760306193,500.0,0.00013273,2]
[399860170,1766760361401,1035.734,0.00030136,120]
[399860171,1766760485281,206.57119576,0.00014748,2]
[399860295,1766760638315,-156.36396904,0.00015204,2]
[399860296,1766760638327,-206.57119575,0.00015204,2]
[399860297,1766760638338,-5000.0,0.00015518,2]
[399860298,1766760638349,-644.0,0.00015518,2]
[399860299,1766760638360,-307.1507572,0.00015596,2]
[399860300,1766760638371,-300.0,0.00015751,2]
[399860301,1766760638383,-1200.0,0.00015751,2]
[399860302,1766760638395,-300.0,0.00015752,2]
[399860304,1766760638406,-1200.0,0.00015752,2]
[399860305,1766760638417,-300.0,0.00015752,2]
[399860306,1766760638428,-281.43418539,0.00015753,2]
[399860307,1766760638439,-1826.09157028,0.00015756,2]
[399860308,1766760638450,-1826.09157026,0.00015767,2]
[399860309,1766760638460,-1826.09157026,0.00015778,2]
[399860310,1766760638471,-1826.09157026,0.00015789,2]
[399860311,1766760638482,-13520.78996666,0.00015798,2]
[399860312,1766760638492,-1826.09157026,0.000158,2]
[399860313,1766760638502,-500.0,0.00015852,2]
[399860314,1766760638512,-277.36158669,0.00015852,2]
[399860315,1766760638522,-972.14626903,0.00015852,2]
[399860316,1766760638533,-369.08839419,0.00015852,2]
[399860317,1766760638549,-972.14626903,0.00015852,2]
[399860318,1766760638562,-972.14626903,0.00015852,2]
[399860319,1766760638573,-972.14626903,0.00015852,2]
[399860320,1766760638583,-972.14626903,0.00015852,2]
[399860321,1766760638594,-972.14626903,0.00015852,2]
[399860322,1766760638604,-972.14626903,0.00015852,2]
[399860323,1766760638614,-972.14626903,0.00015852,2]
[399860324,1766760638625,-972.14626903,0.00015852,2]
[399860325,1766760638636,-972.14626903,0.00015852,2]
[399860326,1766760638646,-972.14626903,0.00015852,2]
[399860327,1766760638656,-972.14626903,0.00015852,2]
[399860328,1766760638666,-972.14626903,0.00015852,2]
[399860329,1766760638677,-972.14626903,0.00015852,2]
[399860330,1766760638687,-972.14626903,0.00015852,2]
[399860331,1766760638697,-972.14626903,0.00015852,2]
[399860332,1766760638707,-972.14626903,0.00015852,2]
[399860333,1766760638717,-340.21,0.00015852,3]
[399860334,1766760638727,-170.11,0.00015852,3]
[399860335,1766760638738,-510.35,0.00015852,3]
[399860336,1766760638749,-1000.0,0.00015853,2]
[399860337,1766760638759,-1000.0,0.00015853,2]
[399860338,1766760638769,-168.3888056,0.00015853,2]
[399860339,1766760638780,-151.0,0.00015853,2]
[399860340,1766760638794,-1000.0,0.00015853,2]
[399860341,1766760638804,-1000.0,0.00015853,2]
[399860342,1766760638815,-461.67526834,0.00015853,2]
[399860343,1766760638826,-160.0,0.00015853,2]
[399860344,1766760638837,-160.48610871,0.00015853,2]
[399860345,1766760638848,-2477.5243733,0.00015859,2]
[399860346,1766760638858,-10708.07193348,0.00015862,2]
[399860347,1766760638873,-794.61667835,0.00015862,2]
[399860348,1766760638947,-6137.37848807,0.00015862,2]
[399860349,1766760638962,-15354.9790435,0.00015862,2]
[399860364,1766760643049,202.73487787,7.614e-05,2]
[399860365,1766760643695,202.73487787,0.00010073,2]
[399860366,1766760644335,202.73487787,0.00012532,2]
[399860372,1766760645024,202.73487787,0.0001499,2]
[399860373,1766760645680,-2082.97485638,0.00015862,2]
[399860374,1766760645692,-3697.29113319,0.00015862,2]
[399860375,1766760645742,-5782.61069268,0.00015862,2]
[399860395,1766760646341,-351.32,0.00015862,2]
[399860397,1766760646353,-16759.02252816,0.00015862,2]
[399860421,1766760646585,-13810.18074309,0.00015862,2]
[399860570,1766760651025,494.12497713,7.614e-05,2]
[399860571,1766760651683,494.12497713,0.00010073,2]
[399860572,1766760652342,494.12497713,0.00012532,2]
[399860573,1766760653035,494.12497713,0.0001499,2]
[399860574,1766760667789,243.51997611,7.961e-05,2]
[399860575,1766760668515,243.51997611,0.00013261,2]
[399860576,1766760700264,150.0,0.00011706,2]
[399860577,1766760701229,150.0,0.00012263,2]
[399860578,1766760702476,150.0,0.00012821,2]
[399860579,1766760702933,150.0,0.00013378,2]
[399860580,1766760703604,150.0,0.00013936,2]
[399860581,1766760704061,150.0,0.00014493,2]
[399860582,1766760712508,-150.0,0.00015051,2]
[399860583,1766760773151,165.0,0.00030136,120]
[399860584,1766760782857,275.38769617,7.961e-05,2]
[399860585,1766760783533,275.38769617,0.00010591,2]
[399860586,1766760784226,275.38769617,0.00013222,2]
[399860587,1766760821187,9173.84691149,0.00014713,2]
[399860588,1766760821216,10000.01,0.00014713,2]
[399860589,1766760821242,10000.01,0.00014713,2]
[399860590,1766760821268,8210.90606571,0.00014713,2]
[399860591,1766760929413,548.416488,0.00013699,2]
[399860592,1766760951520,169.89585209,0.00026782,120]
[399860593,1766761009527,-212.6620605,0.00014682,2]
[399860594,1766761043876,-5000.0,0.00015294,2]
[399860595,1766761048501,0.01,0.00013123,2]
[399860596,1766761048528,211.71857604,0.00013123,2]
[399860597,1766761048926,5000.0,0.00015294,2]
[399860599,1766761276196,-5000.0,0.00015216,2]
[399860600,1766761283245,0.01,0.00015216,2]
[399860601,1766761283277,4999.99,0.00015216,2]
[399860602,1766761309615,-5000.0,0.00015216,2]
[399860603,1766761324724,-642.0,0.0001537,2]
[399860604,1766761330935,5000.0,0.0001537,2]
[399860605,1766761340122,-326.36822215,0.00015448,2]
[399860606,1766761355371,3171.52975297,0.00015448,2]
[399860607,1766761612102,-1200.0,0.00015594,2]
[399860608,1766761612126,-158.72,0.00015594,2]
[399860609,1766761612148,-9094.42617104,0.00015595,2]
[399860610,1766761612170,-319.8408577,0.00015597,2]
[399860611,1766761612192,-3000.04373383,0.000156,2]
[399860612,1766761612215,-300.0,0.00015646,2]
[399860613,1766761612237,-300.0,0.00015647,2]
[399860614,1766761612260,-1200.0,0.00015647,2]
[399860615,1766761612282,-300.0,0.00015647,2]
[399860616,1766761612305,-358.86805443,0.00015648,2]
[399860617,1766761681580,183.50931617,7.961e-05,2]
[399860618,1766761682387,183.50931617,0.00013123,2]
[399860619,1766761703195,162.94,0.000301,120]
[399860650,1766761832398,-1200.0,0.00015546,2]
[399860652,1766761832409,-4280.68051482,0.00015547,2]
[399860654,1766761832418,-286.0,0.00015547,2]
[399860655,1766761832429,-300.0,0.00015547,2]
[399860657,1766761832440,-645.0,0.00015547,2]
[399860660,1766761832451,-1004.0,0.00015548,2]
[399860662,1766761832462,-500.0,0.00015548,2]
[399860663,1766761832472,-383.14979566,0.00015548,2]
[399860664,1766761832482,-609.04922644,0.00015548,2]
[399860667,1766761832492,-1545.87985562,0.00015548,2]
[399860669,1766761832502,-500.0,0.00015548,2]
[399860671,1766761832515,-500.0,0.00015548,2]
[399860673,1766761832525,-500.0,0.00015548,2]
[399860675,1766761832539,-500.0,0.00015548,2]
[399860677,1766761832550,-500.0,0.00015548,2]
[399860679,1766761832565,-255.16888651,0.00015548,2]
[399860681,1766761832575,-161.94377081,0.00015548,2]
[399860683,1766761832586,-500.0,0.00015548,2]
[399860685,1766761832599,-500.0,0.00015548,2]
[399860688,1766761832609,-500.0,0.00015548,2]
[399860689,1766761832620,-500.0,0.00015548,2]
[399860692,1766761832631,-500.0,0.00015548,2]
[399860694,1766761832642,-500.0,0.00015548,2]
[399860696,1766761832651,-500.0,0.00015548,2]
[399860698,1766761832662,-637.04400356,0.00015548,2]
[399860700,1766761832673,-500.0,0.00015548,2]
[399860702,1766761832684,-500.0,0.00015548,2]
[399860704,1766761832694,-500.0,0.00015548,2]
[399860706,1766761832705,-500.0,0.00015548,2]
[399860708,1766761832715,-500.0,0.00015548,2]
[399860710,1766761832726,-1597.40918414,0.00015548,2]
[399860712,1766761832736,-1597.40918414,0.00015548,2]
[399860714,1766761832746,-1595.3761179,0.00015548,2]
[399860716,1766761832758,-1595.3761179,0.00015548,2]
[399860718,1766761832768,-1573.08861119,0.00015548,2]
[399860720,1766761832779,-1573.08861119,0.00015548,2]
[399860722,1766761832794,-1590.24957786,0.00015548,2]
[399860724,1766761832805,-1590.24957786,0.00015548,2]
[399860726,1766761832816,-1610.92774575,0.00015548,2]
[399860728,1766761832828,-1584.31417097,0.00015548,2]
[399860730,1766761832839,-1584.31417097,0.00015548,2]
[399860731,1766761832849,-12044.1132765,0.00015549,2]
[399860732,1766761832862,-260.23270067,0.00015549,2]
[399860757,1766761839104,-1273.6685903,0.00015549,2]
[399860758,1766761839167,-974.69,0.00015549,2]
[399860759,1766761839180,-12233.18313768,0.00015549,2]
[399860760,1766761839194,-986.95716686,0.00015549,2]
[399860761,1766761839211,-5120.70713646,0.00015549,2]
[399860762,1766761839227,-1688.93966,0.00015549,2]
[399860763,1766761839240,-544.26952084,0.00015549,2]
[399860764,1766761839252,-1047.58776972,0.00015549,2]
[399860778,1766761840654,-17470.8,0.00015549,2]
[399860779,1766761840666,-253.6674926,0.00015549,2]
[399860780,1766761840710,-30.74979403,0.00015549,2]
[399860805,1766761846808,-7482.7382079,0.00015549,2]
[399860806,1766761846821,-1187.79495481,0.00015549,2]
[399860807,1766761846832,-135162.49095914,0.00015549,2]
[399860808,1766761846847,-253.7425319,0.00015549,2]
[399860815,1766761847101,-3927.59,0.00015549,2]
[399860876,1766761849388,-1135.04524533,0.00015549,2]
[399860877,1766761849496,-1803.544313,0.00015549,2]
[399860878,1766761850618,-17301.02715766,0.00015549,2]
[399860879,1766761850633,-289.54641168,0.00015549,2]
[399860881,1766761853034,237.47546924,7.961e-05,2]
[399860882,1766761853668,237.47546924,0.00010554,2]
[399860883,1766761854335,237.47546924,0.00013148,2]
[399860884,1766761869708,-5000.0,0.00015393,2]
[399860886,1766761891793,198.33865645,7.961e-05,2]
[399860888,1766761925540,261.02516085,0.00013273,2]
[399860889,1766761932599,10000.0,0.00030137,120]
[399860890,1766761935474,500.0,0.00013273,2]
[399860891,1766761935520,500.0,0.00013273,2]
[399860892,1766761936213,500.0,0.00013273,2]
[399860893,1766761937856,500.0,0.00013273,2]
[399860894,1766761991852,300.0,0.00013673,2]
[399860895,1766761997562,500.0,0.00013273,2]
[399860896,1766761998757,500.0,0.00013273,2]
[399860897,1766761999789,500.0,0.00013273,2]
[399860898,1766762000423,500.0,0.00013273,2]
[399860899,1766762002119,500.0,0.00013273,2]
[399860901,1766762002326,500.0,0.00013273,2]
[399860902,1766762002509,500.0,0.00013273,2]
[399860903,1766762058642,1222.4248649,0.00014514,2]
[399860904,1766762103859,256.0,0.00015075,2]
[399860905,1766762106650,500.0,0.00013273,2]
[399860906,1766762135540,-421.02787623,0.00015449,7]
[399860907,1766762146476,-1828.44133041,0.00015076,2]
[399860908,1766762146516,-2854.08263919,0.00015076,2]
[399860909,1766762146552,-220.59769383,0.00015447,2]
[399860910,1766762152385,-300.0,0.00015448,2]
[399860911,1766762152421,-1684.11150492,0.00015457,7]
[399860912,1766762152455,-366.17438576,0.00015457,7]
[399860913,1766762152490,-548.38,0.00015539,3]
[399860914,1766762152525,-274.19,0.00015539,3]
[399860915,1766762152558,-274.19,0.00015539,3]
[399860916,1766762154927,3105.91821864,0.00015445,2]
[399860917,1766762158531,-4851.70468102,0.00015445,2]
[399860918,1766762180841,500.0,0.00030137,120]
[399860919,1766762188983,500.0,0.00030137,120]
[399860920,1766762196762,500.0,0.00030137,120]
[399860921,1766762203644,500.0,0.00030137,120]
[399860922,1766762212158,500.0,0.00030137,120]
[399860923,1766762219083,500.0,0.00030137,120]
[399860924,1766762223595,500.0,0.00013273,2]
[399860925,1766762228515,500.0,0.00030137,120]
[399860926,1766762229556,500.0,0.00013273,2]
[399860927,1766762229729,500.0,0.00013273,2]
[399860928,1766762229804,500.0,0.00013273,2]
[399860929,1766762240120,500.0,0.00030137,120]
[399860930,1766762252652,500.0,0.00030137,120]
[399860931,1766762263207,500.0,0.00030137,120]
[399860932,1766762271993,500.0,0.00030137,120]
[399860933,1766762288469,-250.0,0.00015267,2]
[399860934,1766762288511,-150.0,0.00015272,2]
[399860935,1766762288547,-275.24518356,0.00015272,2]
[399860936,1766762288585,-4006.9854949,0.00015384,2]
[399860937,1766762294390,-500.0,0.00015272,2]
[399860938,1766762294430,-500.0,0.00015272,2]
[399860939,1766762294471,-1027.0,0.00015334,2]
[399860940,1766762294509,-1027.0,0.00015404,2]
[399860941,1766762294548,-150.0,0.00015409,2]
[399860942,1766762294586,-500.0,0.00015409,2]
[399860943,1766762294625,-500.0,0.00015409,2]
[399860944,1766762294667,-565.01,0.00015425,2]
[399860945,1766762300495,-461.99,0.00015425,2]
[399860946,1766762300897,-1027.0,0.0001544,2]
[399860947,1766762300932,-326.76881138,0.00015461,2]
[399860948,1766762300970,-1027.0,0.00015492,2]
[399860949,1766762301006,-300.0,0.00015523,2]
[399860950,1766762301208,183.57952,0.00030137,120]
[399860951,1766762321892,-1027.0,0.00015291,2]
[399860952,1766762382747,-1027.0,0.00015296,2]
[399860953,1766762382782,-1027.0,0.00015324,2]
[399860954,1766762382816,-540.97892155,0.00015449,7]
[399860955,1766762382849,-1027.0,0.00015456,2]
[399860956,1766762382881,-592.13647071,0.00015457,7]
[399860957,1766762385650,-1571.77921548,0.00015457,7]
[399860958,1766762385684,-1027.0,0.00015524,2]
[399860959,1766762388805,-2980.23790552,0.00015524,2]
[399860960,1766762391750,-10000.01,0.00015524,2]
[399860961,1766762403537,500.0,0.00013273,2]
[399860962,1766762403778,500.0,0.00013273,2]
[399860963,1766762405428,501.0,0.00013273,2]
[399860964,1766762466154,500.0,0.00013699,2]
[399860965,1766762467393,500.0,0.00013273,2]
[399860966,1766762502786,-298.79889081,0.0001527,2]
[399860974,1766762703624,500.0,0.00013273,2]
[399860978,1766762773185,-200.0,0.0001527,2]
[399860979,1766762788604,-3037.08996285,0.00015338,2]
[399860980,1766762788712,-924.8300743,0.00015338,2]
[399860981,1766762794323,-3001.0,0.00015338,2]
[399860982,1766762794360,-300.0,0.00015435,2]
[399860983,1766762794399,-399.84560527,0.00015436,2]
[399860984,1766762794437,-500.0,0.00015436,2]
[399860985,1766762794474,-500.0,0.00015436,2]
[399860986,1766762794517,-187.50922077,0.00015436,2]
[399860987,1766762794823,-223.30034792,0.00015436,2]
[399860988,1766762800443,-1434.83006092,0.00015436,2]
[399860989,1766762800490,-500.0,0.00015436,2]
[399860990,1766762800529,-500.0,0.00015436,2]
[399860991,1766762800568,-500.0,0.00015436,2]
[399860992,1766762800610,-500.0,0.00015436,2]
[399860993,1766762800652,-500.0,0.00015436,2]
[399860994,1766762800692,-500.0,0.00015436,2]
[399860995,1766762800729,-500.0,0.00015436,2]
[399860996,1766762801089,-130.34987816,0.00015436,2]
[399860997,1766762823874,525.0,0.00013273,2]
[399860998,1766762823976,489.03889825,0.00013273,2]
[399860999,1766762929359,-150.0,0.00015264,2]
[399861000,1766762929393,-150.0,0.00015264,2]
[399861001,1766762929429,-326.37946731,0.00015302,2]
[399861002,1766762929465,-532.84892512,0.00015339,2]
[399861003,1766762929499,-2675.18331225,0.000154,2]
[399861004,1766762929533,-150.0,0.00015401,2]
[399861005,1766762929567,-150.0,0.00015401,2]
[399861006,1766762942394,300.0,0.00015434,2]
[399861007,1766762959650,-150.0,0.00015263,2]
[399861008,1766762960353,500.0,0.00015263,2]
[399861009,1766762975838,-150.0,0.000154,2]
[399861010,1766762975872,-500.0,0.000154,2]
[399861011,1766763006462,-3788.28012319,0.00015335,2]
[399861012,1766763006660,-658.03138806,0.00015335,2]
[399861013,1766763006745,-1765.41836556,0.00015335,2]
[399861107,1766763040955,-151.0,0.000154,2]
[399861108,1766763040966,-151.0,0.000154,2]
[399861109,1766763040976,-151.0,0.000154,2]
[399861110,1766763040986,-642.0,0.000154,2]
[399861111,1766763040996,-379.5392493,0.00015429,2]
[399861112,1766763041010,-500.0,0.00015434,2]
[399861113,1766763041021,-279.89192369,0.00015434,2]
[399861114,1766763041030,-331.25645454,0.00015434,2]
[399861115,1766763041040,-1641.54910475,0.00015434,2]
[399861116,1766763041050,-1641.54910475,0.00015434,2]
[399861117,1766763041061,-300.0,0.00015434,2]
[399861118,1766763041071,-300.0,0.00015434,2]
[399861119,1766763041080,-300.0,0.00015434,2]
[399861120,1766763041090,-300.0,0.00015434,2]
[399861121,1766763041102,-1200.0,0.00015434,2]
[399861122,1766763041112,-500.0,0.00015435,2]
[399861123,1766763041122,-151.0,0.00015435,2]
[399861124,1766763041134,-500.0,0.00015435,2]
[399861125,1766763041146,-168.3888056,0.00015435,2]
[399861126,1766763041158,-500.0,0.00015435,2]
[399861127,1766763041168,-500.0,0.00015435,2]
[399861128,1766763041177,-500.0,0.00015435,2]
[399861129,1766763041187,-500.0,0.00015435,2]
[399861130,1766763041196,-151.0,0.00015435,2]
[399861131,1766763041206,-500.0,0.00015435,2]
[399861132,1766763041223,-500.0,0.00015435,2]
[399861133,1766763041233,-500.0,0.00015435,2]
[399861134,1766763041243,-500.0,0.00015435,2]
[399861135,1766763041253,-500.0,0.00015435,2]
[399861136,1766763041263,-500.0,0.00015435,2]
[399861137,1766763041273,-500.0,0.00015435,2]
[399861138,1766763041283,-500.0,0.00015435,2]
[399861139,1766763041294,-500.0,0.00015435,2]
[399861140,1766763041303,-500.0,0.00015435,2]
[399861141,1766763041313,-168.3888056,0.00015435,2]
[399861142,1766763041324,-500.0,0.00015435,2]
[399861143,1766763041335,-250.0,0.00015435,2]
[399861144,1766763041345,-250.0,0.00015435,2]
[399861145,1766763041356,-293.50175943,0.00015435,2]
[399861146,1766763041366,-461.67526834,0.00015435,2]
[399861147,1766763041376,-1000.0,0.00015435,2]
[399861148,1766763041386,-662.59259356,0.00015435,2]
[399861149,1766763041395,-11175.95955682,0.00015435,2]
[399861150,1766763041406,-1200.0,0.00015435,2]
[399861151,1766763041417,-249717.84170666,0.00015437,2]
[399861152,1766763041437,-546.67566703,0.00015437,2]
[399861153,1766763041448,-641499.7472012,0.00015437,2]
[399861163,1766763045193,-500.0,0.00015434,2]
[399861164,1766763045203,-500.0,0.00015434,2]
[399861165,1766763045214,-155.4,0.00015434,2]
[399861166,1766763045226,-344.6,0.00015434,2]
[399861167,1766763045236,-500.0,0.00015434,2]
[399861168,1766763045246,-500.0,0.00015434,2]
[399861169,1766763045256,-500.0,0.00015434,2]
[399861170,1766763045266,-500.0,0.00015434,2]
[399861171,1766763045275,-500.0,0.00015434,2]
[399861172,1766763045285,-500.0,0.00015434,2]
[399861173,1766763045294,-500.0,0.00015434,2]
[399861174,1766763045303,-500.0,0.00015434,2]
[399861175,1766763045313,-500.0,0.00015434,2]
[399861176,1766763045323,-500.0,0.00015434,2]
[399861177,1766763045332,-500.0,0.00015434,2]
[399861178,1766763045342,-500.0,0.00015434,2]
[399861179,1766763045352,-158.81919605,0.00015434,2]